[Event "7th Iberoamerican-ch 2019"]
[Site "Linares"]
[Date "2019.08.11"]
[Round "2.35"]
[White "Moral Garcia, Serafin"]
[Black "Gil Quilez, Sonia"]
[Result "1-0"]
[ECO "B14"]
[WhiteElo "2283"]
[BlackElo "2077"]
[Annotator "NA"]
[PlyCount "89"]
[EventDate "2019.08.10"]
[EventType "swiss"]
[EventCountry "ESP"]
[SourceTitle "playchess.com"]
[Source "ChessBase"]
[SourceQuality "1"]
[TimeControl "5400+30"]

1. e4 {[%emt 0:00:00]} c6 {[%emt 0:00:00]} 2. d4 {[%emt 0:00:09]} d5 {[%emt 0:00:01]} 3. exd5 {[%emt 0:00:35]} cxd5 {[%emt 0:00:21]} 4. c4 {[%emt 0:00:33]} e6 {[%emt 0:01:23]} 5. Nc3 {[%emt 0:00:50]} Nf6 {[%emt 0:00:30]} 6. Nf3 {[%emt 0:00:53]} Be7 {[%emt 0:00:45]} 7. cxd5 {[%emt 0:00:47]} Nxd5 {[%emt 0:00:41]} 8. Bd3 {[%emt 0:01:02]} O-O {[%emt 0:02:46]} 9. O-O {[%emt 0:00:43]} Nc6 {[%emt 0:00:27]} 10. Re1 {[%emt 0:00:38]} a6 {[%emt 0:01:17]} 11. a3 {[%emt 0:02:02]} b5 {[%emt 0:02:00]} 12. Nxd5 {[%emt 0:04:26]} Qxd5 {[%emt 0:03:45]} 13. Be4 {[%emt 0:00:57]} Qd6 {[%emt 0:00:48]} 14. Qc2 {[%emt 0:00:45]} Bb7 {[%emt 0:01:18]} 15. Bxh7+ {[%emt 0:01:33]} Kh8 {[%emt 0:00:01]} 16. Be4 {[%emt 0:00:36]} Bf6 {[%emt 0:14:03]} 17. Be3 {[%emt 0:07:11]} Rac8 {[%emt 0:07:04]} 18. Qe2 {[%emt 0:01:30]} g6 {[%emt 0:06:01]} 19. Bh6 {[%emt 0:05:17]} Rfd8 {[%emt 0:06:08]} 20. Rad1 {[%emt 0:01:46]} Na5 {[%emt 0:12:51]} 21. Bxb7 {[%emt 0:03:16]} Nxb7 {[%emt 0:00:01]} 22. Ne5 {[%emt 0:01:16]} Qe7 {[%emt 0:05:20]} 23. d5 {[%emt 0:04:52]} Kh7 {[%emt 0:04:38]} 24. Nc6 {[%emt 0:02:37]} Rxc6 {[%emt 0:00:06]} 25. dxc6 {[%emt 0:00:05]} Kxh6 {[%emt 0:01:20]} 26. cxb7 {[%emt 0:00:11]} Qxb7 {[%emt 0:00:22]} 27. Rxd8 {[%emt 0:00:56]} Bxd8 {[%emt 0:00:01]} 28. Qe5 {[%emt 0:01:28]} Kh7 {[%emt 0:02:17]} 29. Re3 {[%emt 0:01:41]} g5 {[%emt 0:01:24]} 30. Qe4+ {[%emt 0:03:20]} Qxe4 {[%emt 0:00:06]} 31. Rxe4 {[%emt 0:00:03]} Kg6 {[%emt 0:00:07]} 32. Kf1 {[%emt 0:01:11]} Bf6 {[%emt 0:02:54]} 33. b3 {[%emt 0:00:21]} Kf5 {[%emt 0:00:25]} 34. f3 {[%emt 0:00:03]} Be5 {[%emt 0:01:08]} 35. h3 {[%emt 0:00:18]} Bd6 {[%emt 0:02:12]} 36. a4 {[%emt 0:00:50]} e5 {[%emt 0:02:02]} 37. g4+ {[%emt 0:01:29]} Ke6 {[%emt 0:00:22]} 38. Ke2 {[%emt 0:00:09]} Kd5 {[%emt 0:00:24]} 39. Kd3 {[%emt 0:00:32]} Bc5 {[%emt 0:05:21]} 40. Re2 {[%emt 0:00:17]} bxa4 {[%emt 0:02:39]} 41. bxa4 {[%emt 0:00:21]} a5 {[%emt 0:01:16]} 42. Rc2 {[%emt 0:00:18]} f6 {[%emt 0:00:41]} 43. Rc4 {[%emt 0:00:24]} Ba3 {[%emt 0:00:35]} 44. Rc8 {[%emt 0:00:14]} Bb4 {[%emt 0:01:42]} 45. Rb8 {[%emt 0:01:23]} 1-0

[Event "7th Iberoamerican-ch 2019"]
[Site "Linares"]
[Date "2019.08.11"]
[Round "2.36"]
[White "Lacayo, Rene"]
[Black "Silva, Goncalo Nuno Neto Pi"]
[Result "1/2-1/2"]
[ECO "A41"]
[WhiteElo "2240"]
[BlackElo "2085"]
[Annotator "NA"]
[PlyCount "61"]
[EventDate "2019.08.10"]
[EventType "swiss"]
[EventCountry "ESP"]
[SourceTitle "playchess.com"]
[Source "ChessBase"]
[SourceQuality "1"]
[TimeControl "5400+30"]

1. d4 {[%emt 0:01:28]} d6 {[%emt 0:00:00]} 2. Nf3 {[%emt 0:00:21]} Nf6 {[%emt 0:00:00]} 3. c4 {[%emt 0:00:26]} g6 {[%emt 0:00:00]} 4. Nc3 {[%emt 0:01:16]} Bg7 {[%emt 0:00:06]} 5. Bf4 {[%emt 0:01:51]} O-O {[%emt 0:00:13]} 6. e3 {[%emt 0:00:02]} Nbd7 {[%emt 0:00:33]} 7. Be2 {[%emt 0:00:31]} c6 {[%emt 0:00:18]} 8. O-O {[%emt 0:02:03]} h6 {[%emt 0:05:08]} 9. h3 {[%emt 0:00:21]} c5 {[%emt 0:09:05]} 10. d5 {[%emt 0:06:46]} a6 {[%emt 0:08:45]} 11. a4 {[%emt 0:04:31]} Qc7 {[%emt 0:04:48]} 12. e4 {[%emt 0:01:45]} Ne5 {[%emt 0:08:47]} 13. Nd2 {[%emt 0:01:00]} e6 {[%emt 0:05:06]} 14. Bh2 {[%emt 0:03:08]} exd5 {[%emt 0:01:14]} 15. cxd5 {[%emt 0:00:04]} Re8 {[%emt 0:04:18]} 16. f4 {[%emt 0:02:41]} Ned7 {[%emt 0:03:23]} 17. Qc2 {[%emt 0:03:15]} Rb8 {[%emt 0:02:15]} 18. Nc4 {[%emt 0:23:46]} b5 {[%emt 0:04:09]} 19. axb5 {[%emt 0:00:49]} axb5 {[%emt 0:01:27]} 20. Nxd6 Qxd6 {[%emt 0:00:11]} 21. e5 {[%emt 0:00:28]} Qb6 {[%emt 0:01:12]} 22. exf6 {[%emt 0:01:29]} c4+ {[%emt 0:02:43]} 23. Kh1 {[%emt 0:00:09]} Nxf6 {[%emt 0:00:13]} 24. f5 {[%emt 0:01:18]} Bxf5 {[%emt 0:00:44]} 25. Rxf5 {[%emt 0:08:04]} gxf5 {[%emt 0:00:09]} 26. Rf1 {[%emt 0:06:11]} Rbd8 {[%emt 0:01:10]} 27. Rxf5 {[%emt 0:02:15]} b4 {[%emt 0:06:15]} 28. Na4 {[%emt 0:01:12]} b3 {[%emt 0:02:26]} 29. Qxc4 {[%emt 0:02:03]} Qe3 {[%emt 0:02:19]} 30. Bd3 {[%emt 0:13:22]} Rc8 {[%emt 0:21:18]} 31. Qb5 {[%emt 0:00:19]} 1/2-1/2

[Event "7th Iberoamerican-ch 2019"]
[Site "Linares"]
[Date "2019.08.11"]
[Round "2.37"]
[White "Jesus Reyes, Javier"]
[Black "Almagro Mazariegos, Sebastian"]
[Result "1/2-1/2"]
[ECO "E90"]
[WhiteElo "2026"]
[BlackElo "2268"]
[Annotator "NA"]
[PlyCount "131"]
[EventDate "2019.08.10"]
[EventType "swiss"]
[EventCountry "ESP"]
[SourceTitle "playchess.com"]
[Source "ChessBase"]
[SourceQuality "1"]
[TimeControl "5400+30"]

1. d4 {[%emt 0:00:00]} Nf6 {[%emt 0:00:17]} 2. c4 {[%emt 0:00:00]} g6 {[%emt 0:00:08]} 3. Nc3 {[%emt 0:00:00]} Bg7 {[%emt 0:00:09]} 4. e4 {[%emt 0:00:17]} d6 {[%emt 0:00:07]} 5. Nf3 {[%emt 0:01:20]} O-O {[%emt 0:00:09]} 6. g3 {[%emt 0:00:29]} Nbd7 {[%emt 0:00:19]} 7. Bg2 {[%emt 0:00:28]} e5 {[%emt 0:00:06]} 8. O-O {[%emt 0:00:43]} exd4 {[%emt 0:00:08]} 9. Nxd4 {[%emt 0:00:10]} Re8 {[%emt 0:00:07]} 10. Nc2 {[%emt 0:03:13]} a6 {[%emt 0:07:08]} 11. Ne3 {[%emt 0:05:06]} Rb8 {[%emt 0:02:03]} 12. Qc2 {[%emt 0:02:01]} c5 {[%emt 0:13:02]} 13. f4 {[%emt 0:11:15]} b5 {[%emt 0:01:01]} 14. Bd2 {[%emt 0:03:39]} b4 {[%emt 0:02:15]} 15. Ncd5 {[%emt 0:00:37]} Nxd5 {[%emt 0:01:58]} 16. cxd5 {[%emt 0:04:52]} Bd4 {[%emt 0:11:06]} 17. Rae1 {[%emt 0:02:59]} a5 {[%emt 0:01:42]} 18. Kh1 {[%emt 0:02:18]} Ba6 {[%emt 0:00:30]} 19. Nc4 {[%emt 0:06:15]} Nb6 {[%emt 0:07:04]} 20. Nxa5 {[%emt 0:13:36]} Bxf1 {[%emt 0:01:14]} 21. Rxf1 {[%emt 0:00:27]} Rc8 {[%emt 0:06:54]} 22. Bh3 {[%emt 0:04:04]} Nxd5 {[%emt 0:00:30]} 23. Bxc8 {[%emt 0:02:25]} Qxa5 {[%emt 0:20:08]} 24. exd5 {[%emt 0:10:01]} Rxc8 {[%emt 0:00:13]} 25. a3 {[%emt 0:00:17]} Qa8 {[%emt 0:05:30]} 26. Qe4 {[%emt 0:00:22]} bxa3 {[%emt 0:01:25]} 27. bxa3 {[%emt 0:00:07]} Qxa3 {[%emt 0:00:57]} 28. f5 {[%emt 0:00:14]} Qa2 {[%emt 0:02:58]} 29. fxg6 {[%emt 0:02:40]} hxg6 {[%emt 0:00:49]} 30. Bh6 {[%emt 0:02:01]} Be5 {[%emt 0:01:00]} 31. Qf3 {[%emt 0:03:21]} Qa7 {[%emt 0:01:39]} 32. h4 {[%emt 0:00:20]} Qd7 {[%emt 0:00:21]} 33. Kg2 {[%emt 0:00:37]} Rb8 {[%emt 0:02:22]} 34. Bc1 {[%emt 0:01:50]} c4 {[%emt 0:00:19]} 35. h5 {[%emt 0:00:18]} Rb3 {[%emt 0:00:33]} 36. Be3 {[%emt 0:00:44]} Rb2+ {[%emt 0:02:49]} 37. Kg1 {[%emt 0:00:48]} Bg7 {[%emt 0:02:38]} 38. g4 {[%emt 0:07:14]} Rb3 {[%emt 0:03:28]} 39. Re1 {[%emt 0:02:24]} Bd4 {[%emt 0:01:16]} 40. Kf2 {[%emt 0:03:52]} Qe7 {[%emt 0:00:41]} 41. hxg6 {[%emt 0:01:10]} fxg6 {[%emt 0:00:02]} 42. Qf4 {[%emt 0:00:31]} Qh4+ {[%emt 0:02:25]} 43. Kf1 {[%emt 0:01:59]} Qh3+ {[%emt 0:00:21]} 44. Kf2 {[%emt 0:00:07]} Rb2+ {[%emt 0:00:50]} 45. Re2 {[%emt 0:00:01]} Rxe2+ {[%emt 0:00:30]} 46. Kxe2 {[%emt 0:00:06]} Qg2+ {[%emt 0:00:11]} 47. Ke1 {[%emt 0:00:40]} Bxe3 {[%emt 0:01:08]} 48. Qxe3 {[%emt 0:00:03]} Qxd5 {[%emt 0:00:06]} 49. Qe8+ {[%emt 0:00:25]} Kg7 {[%emt 0:00:01]} 50. Qe7+ {[%emt 0:00:13]} Qf7 {[%emt 0:01:08]} 51. Qxd6 {[%emt 0:00:06]} Qe8+ {[%emt 0:00:31]} 52. Kd2 {[%emt 0:00:26]} Qe4 {[%emt 0:00:02]} 53. g5 {[%emt 0:02:55]} Qg2+ {[%emt 0:00:10]} 54. Kc3 {[%emt 0:00:15]} Qxg5 {[%emt 0:00:03]} 55. Kxc4 {[%emt 0:00:21]} Qc1+ {[%emt 0:00:30]} 56. Kb3 {[%emt 0:00:42]} Qb1+ {[%emt 0:00:18]} 57. Kc3 Qa1+ {[%emt 0:00:15]} 58. Kd2 {[%emt 0:00:51]} Qb2+ {[%emt 0:00:25]} 59. Ke3 {[%emt 0:00:22]} Qc3+ {[%emt 0:00:41]} 60. Kf4 {[%emt 0:00:26]} Qc1+ {[%emt 0:00:18]} 61. Kg4 {[%emt 0:00:26]} Qg1+ {[%emt 0:00:10]} 62. Qg3 {[%emt 0:00:40]} Qd1+ {[%emt 0:00:26]} 63. Qf3 {[%emt 0:00:17]} Qd7+ {[%emt 0:00:25]} 64. Kg5 {[%emt 0:00:23]} Qb5+ {[%emt 0:00:18]} 65. Kg4 {[%emt 0:00:32]} Qe5 {[%emt 0:01:11]} 66. Qb7+ {[%emt 0:00:46]} 1/2-1/2

[Event "7th Iberoamerican-ch 2019"]
[Site "Linares"]
[Date "2019.08.11"]
[Round "2.38"]
[White "Balbuena Fuentes, Mario"]
[Black "Avila Fraire, Ameyalli"]
[Result "1-0"]
[ECO "B24"]
[WhiteElo "2266"]
[BlackElo "2038"]
[Annotator "NA"]
[PlyCount "119"]
[EventDate "2019.08.10"]
[EventType "swiss"]
[EventCountry "ESP"]
[SourceTitle "playchess.com"]
[Source "ChessBase"]
[SourceQuality "1"]
[TimeControl "5400+30"]

1. e4 {[%emt 0:00:00]} c5 {[%emt 0:00:00]} 2. Nc3 {[%emt 0:00:22]} Nc6 {[%emt 0:00:23]} 3. Bb5 {[%emt 0:00:41]} a6 {[%emt 0:02:36]} 4. Bxc6 {[%emt 0:00:19]} bxc6 {[%emt 0:00:09]} 5. f4 {[%emt 0:01:42]} d5 {[%emt 0:00:56]} 6. d3 {[%emt 0:02:37]} e6 {[%emt 0:02:32]} 7. Nf3 {[%emt 0:00:59]} Nf6 {[%emt 0:12:44]} 8. O-O {[%emt 0:01:21]} g6 {[%emt 0:04:38]} 9. e5 {[%emt 0:18:20]} Nd7 {[%emt 0:02:33]} 10. b3 Bg7 {[%emt 0:26:16]} 11. Na4 {[%emt 0:06:41]} Qa5 {[%emt 0:04:11]} 12. Qe1 {[%emt 0:06:20]} Qxe1 {[%emt 0:04:24]} 13. Rxe1 {[%emt 0:00:05]} Rb8 {[%emt 0:05:15]} 14. c4 {[%emt 0:02:29]} Bf8 {[%emt 0:04:31]} 15. Ba3 a5 16. Rac1 {[%emt 0:05:31]} Ba6 {[%emt 0:04:07]} 17. Red1 {[%emt 0:05:37]} Rc8 18. g4 {[%emt 0:02:56]} Be7 {[%emt 0:03:55]} 19. g5 {[%emt 0:04:50]} h6 {[%emt 0:00:43]} 20. h4 {[%emt 0:00:56]} Kd8 {[%emt 0:07:32]} 21. Kg2 {[%emt 0:04:15]} h5 {[%emt 0:04:17]} 22. Ne1 {[%emt 0:01:30]} Rc7 {[%emt 0:04:05]} 23. Rc2 {[%emt 0:01:02]} Re8 24. Rdc1 {[%emt 0:00:50]} Kc8 {[%emt 0:03:34]} 25. cxd5 {[%emt 0:02:24]} cxd5 {[%emt 0:00:11]} 26. Nxc5 {[%emt 0:00:19]} Bxc5 {[%emt 0:00:26]} 27. Bxc5 {[%emt 0:00:10]} Kb7 {[%emt 0:00:12]} 28. Bd6 {[%emt 0:01:25]} Rxc2+ {[%emt 0:00:12]} 29. Rxc2 {[%emt 0:00:02]} Rc8 {[%emt 0:00:13]} 30. Rxc8 {[%emt 0:00:23]} Kxc8 {[%emt 0:00:05]} 31. Kf2 {[%emt 0:00:14]} Kb7 {[%emt 0:00:13]} 32. Ke3 {[%emt 0:00:17]} Nb6 {[%emt 0:02:59]} 33. Kd4 {[%emt 0:03:57]} Kc6 {[%emt 0:01:05]} 34. a4 {[%emt 0:02:02]} Nc8 {[%emt 0:01:23]} 35. Bc5 {[%emt 0:00:16]} Kd7 {[%emt 0:00:38]} 36. Kc3 {[%emt 0:00:27]} Kc6 {[%emt 0:00:08]} 37. d4 {[%emt 0:00:13]} Nb6 {[%emt 0:00:48]} 38. Bxb6 {[%emt 0:00:12]} Kxb6 {[%emt 0:00:08]} 39. Nd3 {[%emt 0:01:46]} Kc6 {[%emt 0:00:53]} 40. Nc5 {[%emt 0:02:25]} Be2 {[%emt 0:00:15]} 41. b4 {[%emt 0:01:00]} axb4+ {[%emt 0:00:41]} 42. Kxb4 {[%emt 0:00:02]} Bf1 {[%emt 0:00:23]} 43. Ka5 {[%emt 0:04:31]} Be2 {[%emt 0:00:19]} 44. Na6 {[%emt 0:00:22]} Bf1 {[%emt 0:00:50]} 45. Nb4+ {[%emt 0:00:11]} Kb7 {[%emt 0:00:17]} 46. Nc2 {[%emt 0:00:09]} Bd3 {[%emt 0:00:33]} 47. Na3 {[%emt 0:00:05]} Kc6 {[%emt 0:00:43]} 48. Nb5 {[%emt 0:00:11]} Bc2 {[%emt 0:00:30]} 49. Nd6 {[%emt 0:00:14]} Bd3 {[%emt 0:00:16]} 50. Nxf7 {[%emt 0:00:13]} Bf5 {[%emt 0:00:36]} 51. Kb4 {[%emt 0:00:44]} Bd3 {[%emt 0:00:24]} 52. Nd8+ {[%emt 0:00:27]} Kd7 {[%emt 0:00:06]} 53. Nb7 {[%emt 0:00:07]} Kc6 {[%emt 0:00:39]} 54. Nc5 {[%emt 0:00:19]} Bf5 {[%emt 0:00:12]} 55. a5 {[%emt 0:00:07]} Bh3 {[%emt 0:00:19]} 56. a6 {[%emt 0:03:06]} Kb6 {[%emt 0:01:23]} 57. Nd7+ {[%emt 0:00:10]} Kxa6 {[%emt 0:00:17]} 58. Nf8 {[%emt 0:00:07]} Bf5 {[%emt 0:00:44]} 59. Kc5 {[%emt 0:00:04]} Kb7 {[%emt 0:00:33]} 60. Kd6 {[%emt 0:00:07]} 1-0

[Event "7th Iberoamerican-ch 2019"]
[Site "Linares"]
[Date "2019.08.11"]
[Round "2.39"]
[White "Calzetta Ruiz, Monica"]
[Black "Alvarez Morales, Miguel"]
[Result "1/2-1/2"]
[ECO "B54"]
[WhiteElo "2257"]
[BlackElo "1965"]
[Annotator "NA"]
[PlyCount "51"]
[EventDate "2019.08.10"]
[EventType "swiss"]
[EventCountry "ESP"]
[SourceTitle "playchess.com"]
[Source "ChessBase"]
[SourceQuality "1"]
[TimeControl "5400+30"]

1. e4 {[%emt 0:00:00]} c5 {[%emt 0:00:00]} 2. Nf3 {[%emt 0:00:00]} d6 {[%emt 0:00:00]} 3. d4 {[%emt 0:00:00]} cxd4 {[%emt 0:00:00]} 4. Nxd4 {[%emt 0:00:00]} a6 {[%emt 0:00:00]} 5. Nc3 {[%emt 0:00:16]} Qc7 {[%emt 0:00:00]} 6. Bd3 {[%emt 0:00:16]} Nf6 {[%emt 0:00:04]} 7. Qe2 {[%emt 0:00:19]} Nbd7 {[%emt 0:00:00]} 8. f4 {[%emt 0:00:40]} e6 {[%emt 0:00:19]} 9. g4 {[%emt 0:00:30]} Nc5 {[%emt 0:01:08]} 10. g5 {[%emt 0:00:46]} Nfd7 {[%emt 0:01:03]} 11. Bd2 {[%emt 0:04:15]} Be7 {[%emt 0:01:16]} 12. h4 {[%emt 0:09:38]} b5 {[%emt 0:01:47]} 13. b4 {[%emt 0:16:56]} Nxd3+ {[%emt 0:00:13]} 14. cxd3 {[%emt 0:00:07]} Bb7 {[%emt 0:02:27]} 15. Rc1 {[%emt 0:03:21]} Rc8 {[%emt 0:00:37]} 16. O-O {[%emt 0:16:12]} Qb8 {[%emt 0:02:23]} 17. a3 {[%emt 0:07:49]} g6 {[%emt 0:04:37]} 18. f5 {[%emt 0:04:16]} e5 {[%emt 0:02:44]} 19. Nb3 {[%emt 0:04:33]} Bd8 {[%emt 0:04:54]} 20. Be3 {[%emt 0:05:17]} Qa8 {[%emt 0:06:45]} 21. Na5 {[%emt 0:02:37]} Bxa5 {[%emt 0:00:30]} 22. bxa5 {[%emt 0:00:02]} Nc5 {[%emt 0:00:22]} 23. Nd5 {[%emt 0:06:50]} Bxd5 {[%emt 0:02:16]} 24. exd5 {[%emt 0:00:02]} O-O {[%emt 0:05:55]} 25. fxg6 {[%emt 0:01:16]} hxg6 {[%emt 0:01:42]} 26. Qg2 {[%emt 0:09:37]} 1/2-1/2

[Event "7th Iberoamerican-ch 2019"]
[Site "Linares"]
[Date "2019.08.11"]
[Round "2.40"]
[White "Gines Abad, Pedro"]
[Black "Silva Rodriguez, Fernando"]
[Result "1/2-1/2"]
[ECO "D14"]
[WhiteElo "1964"]
[BlackElo "2270"]
[Annotator "NA"]
[PlyCount "116"]
[EventDate "2019.08.10"]
[EventType "swiss"]
[EventCountry "ESP"]
[SourceTitle "playchess.com"]
[Source "ChessBase"]
[SourceQuality "1"]
[TimeControl "5400+30"]

1. d4 {[%emt 0:00:00]} d5 {[%emt 0:00:00]} 2. Nf3 {[%emt 0:00:06]} Nf6 {[%emt 0:00:15]} 3. c4 {[%emt 0:00:30]} c6 {[%emt 0:00:30]} 4. cxd5 {[%emt 0:00:30]} cxd5 {[%emt 0:00:30]} 5. Bf4 {[%emt 0:00:30]} Nc6 {[%emt 0:00:30]} 6. e3 {[%emt 0:00:30]} Bf5 {[%emt 0:00:30]} 7. Nc3 {[%emt 0:00:30]} e6 {[%emt 0:00:30]} 8. Qb3 {[%emt 0:00:30]} Bb4 {[%emt 0:00:30]} 9. a3 {[%emt 0:00:30]} Qa5 {[%emt 0:00:30]} 10. Rc1 {[%emt 0:00:30]} Bxc3+ {[%emt 0:00:30]} 11. Qxc3 {[%emt 0:00:30]} Qb6 {[%emt 0:00:30]} 12. b4 {[%emt 0:00:30]} Ne4 {[%emt 0:00:30]} 13. Qb2 {[%emt 0:00:30]} O-O {[%emt 0:00:30]} 14. Nd2 {[%emt 0:00:30]} Rfc8 {[%emt 0:14:20]} 15. Nxe4 {[%emt 0:23:32]} Bxe4 {[%emt 0:00:06]} 16. f3 Bg6 {[%emt 0:00:18]} 17. h4 {[%emt 0:10:14]} f6 {[%emt 0:09:52]} 18. h5 {[%emt 0:10:49]} Bf7 {[%emt 0:00:27]} 19. Bd3 {[%emt 0:01:28]} e5 {[%emt 0:03:13]} 20. dxe5 {[%emt 0:04:37]} fxe5 {[%emt 0:00:30]} 21. h6 {[%emt 0:00:42]} d4 22. Bg3 {[%emt 0:11:47]} g6 {[%emt 0:11:29]} 23. Rc5 {[%emt 0:05:01]} Re8 {[%emt 0:02:17]} 24. Be4 {[%emt 0:04:22]} Rac8 {[%emt 0:15:57]} 25. Bxc6 {[%emt 0:05:08]} Rxc6 {[%emt 0:00:05]} 26. Rxe5 {[%emt 0:04:55]} Rc3 {[%emt 0:00:53]} 27. Rxe8+ {[%emt 0:03:44]} Bxe8 28. O-O Rxe3 {[%emt 0:10:16]} 29. Bf2 {[%emt 0:02:50]} Re7 {[%emt 0:00:36]} 30. Bxd4 {[%emt 0:03:28]} Qe6 {[%emt 0:00:02]} 31. Bxa7 {[%emt 0:03:20]} b6 {[%emt 0:14:19]} 32. Bb8 {[%emt 0:00:20]} Qe3+ {[%emt 0:00:11]} 33. Qf2 {[%emt 0:01:04]} b5 {[%emt 0:03:55]} 34. Qxe3 {[%emt 0:00:42]} Rxe3 {[%emt 0:00:03]} 35. Kf2 {[%emt 0:01:12]} Rxa3 {[%emt 0:00:29]} 36. Re1 {[%emt 0:00:04]} Kf7 37. Bd6 {[%emt 0:00:16]} Ra7 {[%emt 0:01:08]} 38. Re5 {[%emt 0:00:46]} Bc6 {[%emt 0:00:44]} 39. Ke3 {[%emt 0:01:03]} Rd7 {[%emt 0:00:35]} 40. Bc5 {[%emt 0:00:22]} Kf6 {[%emt 0:00:34]} 41. Re8 {[%emt 0:01:13]} g5 {[%emt 0:02:09]} 42. Rg8 {[%emt 0:00:40]} Bd5 {[%emt 0:00:28]} 43. Bd4+ {[%emt 0:00:19]} Kf5 {[%emt 0:04:11]} 44. g4+ {[%emt 0:00:11]} Ke6 {[%emt 0:00:03]} 45. Rxg5 {[%emt 0:00:31]} Rf7 {[%emt 0:00:05]} 46. f4 {[%emt 0:00:28]} Bc4 {[%emt 0:00:09]} 47. Rg7 {[%emt 0:00:57]} Bd5 {[%emt 0:00:18]} 48. f5+ {[%emt 0:00:27]} Kd7 {[%emt 0:00:04]} 49. g5 {[%emt 0:00:31]} Ke8 {[%emt 0:00:05]} 50. Rxf7 {[%emt 0:00:39]} Kxf7 51. g6+ {[%emt 0:00:19]} Kg8 {[%emt 0:00:26]} 52. Kf4 {[%emt 0:00:19]} Bb3 {[%emt 0:00:11]} 53. Kg5 {[%emt 0:00:23]} Bc2 {[%emt 0:00:22]} 54. Kf6 {[%emt 0:01:27]} Bd3 {[%emt 0:00:00]} 55. g7 {[%emt 0:00:17]} Bc2 {[%emt 0:00:16]} 56. Ke6 {[%emt 0:00:09]} Bd3 {[%emt 0:00:29]} 57. f6 {[%emt 0:00:25]} Bc4+ {[%emt 0:00:14]} 58. Ke7 {[%emt 0:00:17]} Bb3 {[%emt 0:00:13]} 1/2-1/2

[Event "7th Iberoamerican-ch 2019"]
[Site "Linares"]
[Date "2019.08.12"]
[Round "3.3"]
[White "Albornoz Cabrera, Carlos Daniel"]
[Black "Sosa, Tomas"]
[Result "1/2-1/2"]
[ECO "A05"]
[WhiteElo "2566"]
[BlackElo "2516"]
[Annotator "ChessBase"]
[PlyCount "138"]
[EventDate "2019.08.10"]
[EventType "swiss"]
[EventCountry "ESP"]
[SourceTitle "playchess.com"]
[Source "ChessBase"]
[SourceQuality "1"]
[TimeControl "5400+30"]

1. Nf3 {[%emt 0:00:00]} Nf6 {[%emt 0:00:55]} 2. c4 {[%emt 0:00:00]} e6 {[%emt 0:01:18]} 3. Nc3 {[%emt 0:00:00]} d5 {[%emt 0:00:04]} 4. d4 {[%emt 0:00:00]} dxc4 {[%emt 0:01:37]} 5. e4 {[%emt 0:00:00]} b5 {[%emt 0:00:28]} 6. e5 {[%emt 0:00:13]} Nd5 {[%emt 0:00:06]} 7. Nxb5 {[%emt 0:00:05]} Nb6 {[%emt 0:00:14]} 8. Be2 {[%emt 0:00:12]} Nc6 {[%emt 0:01:32]} 9. O-O {[%emt 0:01:05]} Be7 {[%emt 0:04:03]} 10. Be3 {[%emt 0:04:30]} O-O {[%emt 0:02:07]} 11. Qc1 {[%emt 0:09:48]} Ba6 {[%emt 0:00:50]} 12. Na3 {[%emt 0:00:38]} Qd5 {[%emt 0:30:47]} 13. b3 {[%emt 0:03:44]} Bxa3 {[%emt 0:01:42]} 14. Qxa3 {[%emt 0:00:08]} Bb5 {[%emt 0:00:03]} 15. Rac1 {[%emt 0:10:46]} cxb3 {[%emt 0:10:09]} 16. Bxb5 {[%emt 0:02:35]} Qxb5 {[%emt 0:00:06]} 17. Rc5 {[%emt 0:01:52]} Qb4 {[%emt 0:00:16]} 18. Qxb3 {[%emt 0:01:06]} Qxb3 {[%emt 0:00:11]} 19. axb3 {[%emt 0:00:02]} Ne7 {[%emt 0:00:14]} 20. Rxc7 {[%emt 0:00:16]} Nbd5 {[%emt 0:00:03]} 21. Rc5 {[%emt 0:04:20]} Rfb8 {[%emt 0:01:53]} 22. Nd2 {[%emt 0:05:58]} Nf5 {[%emt 0:04:04]} 23. Re1 {[%emt 0:03:03]} h5 {[%emt 0:00:42]} 24. Kf1 {[%emt 0:08:39]} a5 {[%emt 0:04:36]} 25. Rc4 {[%emt 0:07:15]} Nb6 {[%emt 0:05:49]} 26. Rc2 {[%emt 0:01:40]} Nd5 {[%emt 0:02:39]} 27. Rc4 {[%emt 0:10:11]} Nb6 {[%emt 0:05:07]} 28. Rc5 {[%emt 0:00:09]} Nd5 {[%emt 0:01:48]} 29. Ra1 {[%emt 0:02:59]} Ndxe3+ {[%emt 0:01:48]} 30. fxe3 {[%emt 0:00:01]} Nxe3+ {[%emt 0:00:09]} 31. Kf2 {[%emt 0:00:37]} Nf5 {[%emt 0:00:17]} 32. d5 {[%emt 0:01:42]} Rd8 {[%emt 0:12:57]} 33. d6 {[%emt 0:00:46]} f6 {[%emt 0:00:03]} 34. Nc4 {[%emt 0:02:53]} fxe5 {[%emt 0:00:15]} 35. Rd1 {[%emt 0:01:24]} Nd4 {[%emt 0:03:21]} 36. Rxe5 {[%emt 0:04:46]} Nxb3 {[%emt 0:00:06]} 37. d7 {[%emt 0:04:13]} a4 {[%emt 0:00:37]} 38. Rb5 {[%emt 0:00:21]} Ra7 {[%emt 0:01:34]} 39. Ne5 {[%emt 0:00:36]} Rc7 {[%emt 0:00:15]} 40. Ke3 {[%emt 0:01:23]} Rc5 {[%emt 0:01:20]} 41. Rxc5 {[%emt 0:03:15]} Nxc5 {[%emt 0:00:01]} 42. Rc1 {[%emt 0:01:28]} Nxd7 {[%emt 0:00:30]} 43. Rd1 {[%emt 0:00:30]} a3 {[%emt 0:00:27]} 44. Nxd7 {[%emt 0:00:55]} a2 {[%emt 0:00:15]} 45. Ra1 {[%emt 0:00:18]} Rxd7 {[%emt 0:00:04]} 46. Rxa2 {[%emt 0:00:04]} Kf7 {[%emt 0:00:31]} 47. Ke4 {[%emt 0:00:47]} Rb7 {[%emt 0:00:28]} 48. Ra5 {[%emt 0:00:25]} Rb4+ {[%emt 0:01:01]} 49. Kf3 {[%emt 0:00:28]} g6 {[%emt 0:00:37]} 50. g3 {[%emt 0:02:31]} Kf6 {[%emt 0:00:45]} 51. h3 {[%emt 0:01:26]} e5 {[%emt 0:01:01]} 52. Ra8 {[%emt 0:00:30]} Rb3+ {[%emt 0:03:19]} 53. Kf2 {[%emt 0:00:28]} h4 {[%emt 0:00:19]} 54. gxh4 {[%emt 0:00:17]} Rxh3 {[%emt 0:00:04]} 55. Rh8 {[%emt 0:00:54]} Kf5 {[%emt 0:00:25]} 56. Kg2 {[%emt 0:00:33]} Kg4 {[%emt 0:01:14]} 57. Rh6 {[%emt 0:00:25]} Rg3+ {[%emt 0:00:05]} 58. Kf2 {[%emt 0:00:11]} Kf4 {[%emt 0:01:06]} 59. h5 {[%emt 0:00:11]} Rh3 {[%emt 0:00:38]} 60. Rxg6 {[%emt 0:00:19]} Rh2+ {[%emt 0:00:13]} 61. Ke1 {[%emt 0:00:38]} Rxh5 {[%emt 0:00:10]} 62. Ra6 {[%emt 0:00:14]} Rh1+ {[%emt 0:00:59]} 63. Ke2 {[%emt 0:00:06]} Rh2+ {[%emt 0:00:04]} 64. Ke1 {[%emt 0:00:03]} Rh3 {[%emt 0:00:20]} 65. Ke2 {[%emt 0:00:25]} Re3+ {[%emt 0:00:33]} 66. Kf2 {[%emt 0:00:15]} Rb3 {[%emt 0:00:17]} 67. Ke2 {[%emt 0:00:28]} Rb2+ {[%emt 0:00:37]} 68. Ke1 {[%emt 0:00:09]} e4 {[%emt 0:00:34]} 69. Ra3 {[%emt 0:00:04]} Rb1+ {[%emt 0:00:06]} 1/2-1/2